[Event "November 21 Late 2023"]
[Site "https://www.chess.com"]
[Date "2023.11.21"]
[Round "8"]
[White "Martins, Bruno Andre Leite"]
[Black "Jarocka, Liwia"]
[Result "1-0"]
[Board "98"]
[TimeControl "180+1"]
[WhiteFideId "1942255"]
[BlackFideId "21807558"]
[WhiteElo "2307"]
[BlackElo "2001"]
[WhiteTeam "POR"]
[BlackTeam "POL"]
[WhiteClock "0:00:06"]
[BlackClock "0:00:13"]

1. d4 {[%clk 0:02:51]}  Nf6 {[%clk 0:02:56]} 2. Nf3 {[%clk 0:02:51]}  e6 {[%clk 0:02:55]} 3. c4 {[%clk 0:02:52]}  d5 {[%clk 0:02:54]} 4. g3 {[%clk 0:02:52]}  Bb4+ {[%clk 0:02:54]} 5. Bd2 {[%clk 0:02:50]}  Be7 {[%clk 0:02:53]} 6. Bg2 {[%clk 0:02:51]}  O-O {[%clk 0:02:53]} 7. O-O {[%clk 0:02:51]}  c6 {[%clk 0:02:51]} 8. Qc2 {[%clk 0:02:51]}  b6 {[%clk 0:02:51]} 9. Nc3 {[%clk 0:02:43]}  Bb7 {[%clk 0:02:49]} 10. e4 {[%clk 0:02:29]}  dxe4 {[%clk 0:02:44]} 11. Nxe4 {[%clk 0:02:30]}  Nxe4 {[%clk 0:02:45]} 12. Qxe4 {[%clk 0:02:31]}  Nd7 {[%clk 0:02:45]} 13. Rad1 {[%clk 0:02:25]}  Nf6 {[%clk 0:02:41]} 14. Qc2 {[%clk 0:02:25]}  Qc8 {[%clk 0:02:41]} 15. Rfe1 {[%clk 0:02:13]}  Re8 {[%clk 0:02:32]} 16. Ng5 {[%clk 0:01:51]}  h6 {[%clk 0:02:30]} 17. Ne4 {[%clk 0:01:50]}  c5 {[%clk 0:02:23]} 18. dxc5 {[%clk 0:01:42]}  Nxe4 {[%clk 0:02:18]} 19. Bxe4 {[%clk 0:01:43]}  Bxe4 {[%clk 0:02:17]} 20. Qxe4 {[%clk 0:01:43]}  Qxc5 {[%clk 0:02:00]} 21. Bc3 {[%clk 0:01:39]}  Rac8 {[%clk 0:01:53]} 22. b3 {[%clk 0:01:38]}  Bf8 {[%clk 0:01:53]} 23. Rd7 {[%clk 0:01:35]}  Rc7 {[%clk 0:01:46]} 24. Red1 {[%clk 0:01:32]}  Rec8 {[%clk 0:01:42]} 25. Qf3 {[%clk 0:00:57]}  Qf5 {[%clk 0:01:30]} 26. Qxf5 {[%clk 0:00:55]}  exf5 {[%clk 0:01:31]} 27. Rxc7 {[%clk 0:00:34]}  Rxc7 {[%clk 0:01:31]} 28. Rd8 {[%clk 0:00:35]}  a5 {[%clk 0:01:19]} 29. Bb2 {[%clk 0:00:31]}  f6 {[%clk 0:00:58]} 30. Ba3 {[%clk 0:00:31]}  Rf7 {[%clk 0:00:59]} 31. Kg2 {[%clk 0:00:32]}  g5 {[%clk 0:00:57]} 32. Kf3 {[%clk 0:00:31]}  Kg7 {[%clk 0:00:57]} 33. Bxf8+ {[%clk 0:00:32]}  Rxf8 {[%clk 0:00:57]} 34. Rxf8 {[%clk 0:00:32]}  Kxf8 {[%clk 0:00:58]} 35. Ke3 {[%clk 0:00:32]}  Ke7 {[%clk 0:00:57]} 36. Kd4 {[%clk 0:00:32]}  Kd6 {[%clk 0:00:57]} 37. a3 {[%clk 0:00:31]}  h5 {[%clk 0:00:54]} 38. b4 {[%clk 0:00:31]}  Kc6 {[%clk 0:00:45]} 39. h3 {[%clk 0:00:19]}  Kd6 {[%clk 0:00:44]} 40. bxa5 {[%clk 0:00:11]}  bxa5 {[%clk 0:00:42]} 41. a4 {[%clk 0:00:11]}  Kc6 {[%clk 0:00:41]} 42. c5 {[%clk 0:00:12]}  Kc7 {[%clk 0:00:31]} 43. Kd5 {[%clk 0:00:11]}  Kd7 {[%clk 0:00:32]} 44. c6+ {[%clk 0:00:11]}  Kc7 {[%clk 0:00:32]} 45. Kc5 {[%clk 0:00:12]}  f4 {[%clk 0:00:21]} 46. gxf4 {[%clk 0:00:11]}  g4 {[%clk 0:00:20]} 47. h4 {[%clk 0:00:06]}  f5 {[%clk 0:00:13]} 48. Kb5 {[%clk 0:00:06]} 1-0

[Event "November 21 Late 2023"]
[Site "https://www.chess.com"]
[Date "2023.11.21"]
[Round "8"]
[White "Maect19"]
[Black "Minko, Dmitry"]
[Result "0-1"]
[Board "99"]
[TimeControl "180+1"]
[BlackFideId "24188468"]
[WhiteElo "2342"]
[BlackElo "1992"]
[BlackTeam "FID"]
[WhiteClock "0:00:08"]
[BlackClock "0:00:18"]

1. d4 {[%clk 0:03:00]}  d5 {[%clk 0:02:58]} 2. Nf3 {[%clk 0:03:00]}  Nf6 {[%clk 0:02:58]} 3. e3 {[%clk 0:03:01]}  e6 {[%clk 0:02:59]} 4. Bd3 {[%clk 0:03:01]}  a6 {[%clk 0:02:59]} 5. O-O {[%clk 0:03:01]}  c5 {[%clk 0:02:59]} 6. b3 {[%clk 0:03:00]}  Nc6 {[%clk 0:02:59]} 7. Bb2 {[%clk 0:03:00]}  Be7 {[%clk 0:02:56]} 8. Nbd2 {[%clk 0:03:00]}  O-O {[%clk 0:02:56]} 9. a3 {[%clk 0:02:55]}  b5 {[%clk 0:02:55]} 10. dxc5 {[%clk 0:02:43]}  Bxc5 {[%clk 0:02:55]} 11. e4 {[%clk 0:02:39]}  dxe4 {[%clk 0:02:38]} 12. Nxe4 {[%clk 0:02:39]}  Nxe4 {[%clk 0:02:38]} 13. Bxe4 {[%clk 0:02:40]}  Bb7 {[%clk 0:02:38]} 14. Qe2 {[%clk 0:02:30]}  Qe7 {[%clk 0:02:34]} 15. Rfd1 {[%clk 0:02:16]}  Rfd8 {[%clk 0:02:32]} 16. b4 {[%clk 0:02:12]}  Bb6 {[%clk 0:02:29]} 17. c4 {[%clk 0:02:08]}  bxc4 {[%clk 0:02:04]} 18. Qxc4 {[%clk 0:02:07]}  Rac8 {[%clk 0:02:04]} 19. Qe2 {[%clk 0:01:25]}  Rxd1+ {[%clk 0:01:51]} 20. Rxd1 {[%clk 0:01:24]}  Rd8 {[%clk 0:01:52]} 21. h3 {[%clk 0:01:10]}  a5 {[%clk 0:01:27]} 22. b5 {[%clk 0:01:01]}  Nb8 {[%clk 0:01:23]} 23. Rxd8+ {[%clk 0:00:58]}  Bxd8 {[%clk 0:01:21]} 24. a4 {[%clk 0:00:50]}  Bb6 {[%clk 0:01:17]} 25. Bxb7 {[%clk 0:00:32]}  Qxb7 {[%clk 0:01:18]} 26. Qe5 {[%clk 0:00:32]}  Kf8 {[%clk 0:01:02]} 27. Qxg7+ {[%clk 0:00:30]}  Ke8 {[%clk 0:01:03]} 28. Bf6 {[%clk 0:00:27]}  Nd7 {[%clk 0:00:44]} 29. Ne5 {[%clk 0:00:21]}  Nxf6 {[%clk 0:00:30]} 30. Qxf6 {[%clk 0:00:20]}  Bc5 {[%clk 0:00:31]} 31. Nc6 {[%clk 0:00:18]}  Qd7 {[%clk 0:00:29]} 32. Qh8+ {[%clk 0:00:18]}  Bf8 {[%clk 0:00:30]} 33. Qxh7 {[%clk 0:00:17]}  Qd1+ {[%clk 0:00:29]} 34. Kh2 {[%clk 0:00:18]}  Qe2 {[%clk 0:00:18]} 35. f3 {[%clk 0:00:09]}  Bd6+ {[%clk 0:00:17]} 36. Kg1 {[%clk 0:00:08]}  Qe1# {[%clk 0:00:18]} 0-1

[Event "November 21 Late 2023"]
[Site "https://www.chess.com"]
[Date "2023.11.21"]
[Round "8"]
[White "Gutkin, Ilya"]
[Black "Rose, Felix"]
[Result "1-0"]
[Board "100"]
[TimeControl "180+1"]
[WhiteFideId "16203470"]
[BlackFideId "5105722"]
[WhiteElo "2248"]
[BlackElo "2039"]
[WhiteTeam "GER"]
[BlackTeam "MEX"]
[WhiteClock "0:02:34"]
[BlackClock "0:00:54"]

1. d4 {[%clk 0:03:00]}  d5 {[%clk 0:02:58]} 2. c4 {[%clk 0:03:01]}  e6 {[%clk 0:02:58]} 3. Nc3 {[%clk 0:02:59]}  Nf6 {[%clk 0:02:58]} 4. Nf3 {[%clk 0:02:59]}  Be7 {[%clk 0:02:57]} 5. Bf4 {[%clk 0:02:58]}  O-O {[%clk 0:02:56]} 6. e3 {[%clk 0:02:59]}  b6 {[%clk 0:02:56]} 7. Rc1 {[%clk 0:02:57]}  c5 {[%clk 0:02:53]} 8. Be2 {[%clk 0:02:54]}  Bb7 {[%clk 0:02:52]} 9. O-O {[%clk 0:02:53]}  Nc6 {[%clk 0:02:49]} 10. cxd5 {[%clk 0:02:51]}  Nxd5 {[%clk 0:02:49]} 11. Nxd5 {[%clk 0:02:51]}  Qxd5 {[%clk 0:02:47]} 12. dxc5 {[%clk 0:02:50]}  Qxd1 {[%clk 0:02:44]} 13. Rfxd1 {[%clk 0:02:49]}  Bxc5 {[%clk 0:02:40]} 14. Rd7 {[%clk 0:02:46]}  Bc8 {[%clk 0:01:57]} 15. Rc7 {[%clk 0:02:44]}  Nb8 {[%clk 0:00:54]} 16. b4 {[%clk 0:02:34]} 1-0

[Event "November 21 Late 2023"]
[Site "https://www.chess.com"]
[Date "2023.11.21"]
[Round "8"]
[White "Melikhov, Evgeny V."]
[Black "Gerbelli Neto, Eduardo"]
[Result "0-1"]
[Board "101"]
[TimeControl "180+1"]
[WhiteFideId "4122046"]
[BlackFideId "2103281"]
[WhiteElo "2165"]
[BlackElo "2178"]
[WhiteTeam "GRE"]
[BlackTeam "BRA"]
[WhiteClock "0:00:00"]
[BlackClock "0:00:35"]

1. d4 {[%clk 0:03:00]}  d5 {[%clk 0:02:59]} 2. c4 {[%clk 0:03:00]}  c6 {[%clk 0:02:58]} 3. Nc3 {[%clk 0:03:00]}  Nf6 {[%clk 0:02:57]} 4. e3 {[%clk 0:03:00]}  e6 {[%clk 0:02:57]} 5. Nf3 {[%clk 0:02:59]}  Nbd7 {[%clk 0:02:56]} 6. Bd3 {[%clk 0:02:59]}  dxc4 {[%clk 0:02:56]} 7. Bxc4 {[%clk 0:03:00]}  b5 {[%clk 0:02:57]} 8. Bd3 {[%clk 0:03:00]}  a6 {[%clk 0:02:57]} 9. e4 {[%clk 0:02:59]}  c5 {[%clk 0:02:57]} 10. d5 {[%clk 0:02:57]}  Bb7 {[%clk 0:02:57]} 11. dxe6 {[%clk 0:02:51]}  fxe6 {[%clk 0:02:58]} 12. O-O {[%clk 0:02:50]}  c4 {[%clk 0:02:58]} 13. Bc2 {[%clk 0:02:49]}  Qc7 {[%clk 0:02:54]} 14. Ng5 {[%clk 0:02:35]}  Qc6 {[%clk 0:02:37]} 15. Qf3 {[%clk 0:02:32]}  h6 {[%clk 0:02:24]} 16. Qh3 {[%clk 0:02:28]}  hxg5 {[%clk 0:02:24]} 17. Qxh8 {[%clk 0:02:28]}  Kf7 {[%clk 0:02:12]} 18. Qh3 {[%clk 0:02:22]}  g4 {[%clk 0:02:09]} 19. Qg3 {[%clk 0:02:13]}  Bd6 {[%clk 0:02:01]} 20. Bf4 {[%clk 0:02:12]}  Nh5 {[%clk 0:01:57]} 21. Qxg4 {[%clk 0:01:30]}  Nxf4 {[%clk 0:01:56]} 22. e5 {[%clk 0:01:19]}  Bxe5 {[%clk 0:01:22]} 23. Be4 {[%clk 0:01:18]}  Qc7 {[%clk 0:01:18]} 24. Bxb7 {[%clk 0:01:15]}  Qxb7 {[%clk 0:01:17]} 25. Rfe1 {[%clk 0:01:06]}  Nf6 {[%clk 0:01:11]} 26. Qg5 {[%clk 0:00:50]}  Bc7 {[%clk 0:00:49]} 27. Rad1 {[%clk 0:00:43]}  Rh8 {[%clk 0:00:48]} 28. h4 {[%clk 0:00:28]}  Rh5 {[%clk 0:00:45]} 29. Qg3 {[%clk 0:00:25]}  Ne2+ {[%clk 0:00:44]} 30. Nxe2 {[%clk 0:00:25]}  Bxg3 {[%clk 0:00:44]} 31. Nxg3 {[%clk 0:00:26]}  Rxh4 {[%clk 0:00:43]} 32. f3 {[%clk 0:00:22]}  Qb6+ {[%clk 0:00:38]} 33. Kf1 {[%clk 0:00:21]}  Nd5 {[%clk 0:00:39]} 34. Rxd5 {[%clk 0:00:11]}  exd5 {[%clk 0:00:38]} 35. Re5 {[%clk 0:00:00]}  Qd4 {[%clk 0:00:35]} 0-1

[Event "November 21 Late 2023"]
[Site "https://www.chess.com"]
[Date "2023.11.21"]
[Round "8"]
[White "Butti, Enrique"]
[Black "Zakarian, David"]
[Result "1-0"]
[Board "102"]
[TimeControl "180+1"]
[WhiteFideId "3700470"]
[BlackFideId "13301276"]
[WhiteElo "2080"]
[BlackElo "2286"]
[WhiteTeam "PAR"]
[BlackTeam "ARM"]
[WhiteClock "0:01:14"]
[BlackClock "0:00:09"]

1. Nf3 {[%clk 0:02:59]}  d5 {[%clk 0:02:57]} 2. c4 {[%clk 0:02:56]}  e6 {[%clk 0:02:56]} 3. d4 {[%clk 0:02:54]}  Nf6 {[%clk 0:02:53]} 4. e3 {[%clk 0:02:51]}  Be7 {[%clk 0:02:52]} 5. Nc3 {[%clk 0:02:49]}  O-O {[%clk 0:02:53]} 6. b3 {[%clk 0:02:49]}  c5 {[%clk 0:02:42]} 7. Bb2 {[%clk 0:02:48]}  cxd4 {[%clk 0:02:40]} 8. exd4 {[%clk 0:02:47]}  b6 {[%clk 0:02:39]} 9. Bd3 {[%clk 0:02:46]}  dxc4 {[%clk 0:02:33]} 10. bxc4 {[%clk 0:02:46]}  Bb7 {[%clk 0:02:34]} 11. O-O {[%clk 0:02:45]}  Nc6 {[%clk 0:02:30]} 12. Qe2 {[%clk 0:02:44]}  Nxd4 {[%clk 0:01:53]} 13. Nxd4 {[%clk 0:02:43]}  Qxd4 {[%clk 0:01:52]} 14. Nd5 {[%clk 0:02:43]}  Qc5 {[%clk 0:01:50]} 15. Bxf6 {[%clk 0:02:40]}  gxf6 {[%clk 0:01:43]} 16. Qg4+ {[%clk 0:02:36]}  Kh8 {[%clk 0:01:40]} 17. Qh4 {[%clk 0:02:35]}  f5 {[%clk 0:01:32]} 18. Nxe7 {[%clk 0:02:32]}  Qe5 {[%clk 0:01:16]} 19. c5 {[%clk 0:02:31]}  Rad8 {[%clk 0:00:55]} 20. c6 {[%clk 0:02:19]}  Ba8 {[%clk 0:00:53]} 21. Rad1 {[%clk 0:02:05]}  Rd4 {[%clk 0:00:49]} 22. Qh6 {[%clk 0:01:52]}  Re8 {[%clk 0:00:43]} 23. c7 {[%clk 0:01:40]}  Bb7 {[%clk 0:00:36]} 24. Bb5 {[%clk 0:01:33]}  Rg8 {[%clk 0:00:12]} 25. Nxg8 {[%clk 0:01:21]}  Kxg8 {[%clk 0:00:13]} 26. Qg5+ {[%clk 0:01:17]}  Kf8 {[%clk 0:00:13]} 27. Rxd4 {[%clk 0:01:15]}  Qxd4 {[%clk 0:00:09]} 28. Qd8+ {[%clk 0:01:14]} 1-0

[Event "November 21 Late 2023"]
[Site "https://www.chess.com"]
[Date "2023.11.21"]
[Round "8"]
[White "Vila Dupla, Aurelio"]
[Black "hristos03"]
[Result "0-1"]
[Board "103"]
[TimeControl "180+1"]
[WhiteFideId "2203383"]
[WhiteElo "2009"]
[BlackElo "2381"]
[WhiteTeam "ESP"]
[WhiteClock "0:00:05"]
[BlackClock "0:01:07"]

1. Nf3 {[%clk 0:03:00]}  Nf6 {[%clk 0:02:57]} 2. d4 {[%clk 0:03:00]}  e6 {[%clk 0:02:54]} 3. g3 {[%clk 0:02:58]}  c5 {[%clk 0:02:53]} 4. c4 {[%clk 0:02:57]}  d5 {[%clk 0:02:50]} 5. cxd5 {[%clk 0:02:56]}  exd5 {[%clk 0:02:51]} 6. Bg2 {[%clk 0:02:56]}  c4 {[%clk 0:02:47]} 7. O-O {[%clk 0:02:55]}  Be7 {[%clk 0:02:48]} 8. b3 {[%clk 0:02:55]}  cxb3 {[%clk 0:02:47]} 9. Qxb3 {[%clk 0:02:55]}  O-O {[%clk 0:02:46]} 10. Ba3 {[%clk 0:02:55]}  Nc6 {[%clk 0:02:43]} 11. Bxe7 {[%clk 0:02:54]}  Qxe7 {[%clk 0:02:44]} 12. e3 {[%clk 0:02:53]}  Bf5 {[%clk 0:02:32]} 13. Nc3 {[%clk 0:02:52]}  Rfd8 {[%clk 0:02:22]} 14. Rfd1 {[%clk 0:02:30]}  h6 {[%clk 0:02:16]} 15. Rac1 {[%clk 0:02:28]}  Rab8 {[%clk 0:02:12]} 16. Ne2 {[%clk 0:02:20]}  Be4 {[%clk 0:02:02]} 17. Nc3 {[%clk 0:02:17]}  Bf5 {[%clk 0:02:01]} 18. Qa4 {[%clk 0:02:04]}  Ne4 {[%clk 0:01:43]} 19. Ne2 {[%clk 0:01:21]}  Bg4 {[%clk 0:01:42]} 20. Rc2 {[%clk 0:00:51]}  Qf6 {[%clk 0:01:28]} 21. Nf4 {[%clk 0:00:29]}  g5 {[%clk 0:01:28]} 22. Nxd5 {[%clk 0:00:11]}  Rxd5 {[%clk 0:01:24]} 23. Ne1 {[%clk 0:00:11]}  Bxd1 {[%clk 0:01:14]} 24. Bxe4 {[%clk 0:00:09]}  Bxc2 {[%clk 0:01:09]} 25. Qxc2 {[%clk 0:00:05]}  Rdd8 {[%clk 0:01:07]} 0-1

[Event "November 21 Late 2023"]
[Site "https://www.chess.com"]
[Date "2023.11.21"]
[Round "8"]
[White "Figorito, Nick"]
[Black "zano2023"]
[Result "1-0"]
[Board "104"]
[TimeControl "180+1"]
[WhiteFideId "30923689"]
[WhiteElo "2369"]
[BlackElo "2214"]
[WhiteTeam "USA"]
[WhiteClock "0:00:03"]
[BlackClock "0:00:05"]

1. Nf3 {[%clk 0:03:00]}  d6 {[%clk 0:02:58]} 2. g3 {[%clk 0:03:01]}  e5 {[%clk 0:02:58]} 3. Bg2 {[%clk 0:03:01]}  Nf6 {[%clk 0:02:58]} 4. O-O {[%clk 0:03:02]}  Be7 {[%clk 0:02:57]} 5. c4 {[%clk 0:03:03]}  O-O {[%clk 0:02:51]} 6. Nc3 {[%clk 0:03:03]}  Re8 {[%clk 0:02:50]} 7. d3 {[%clk 0:03:03]}  c6 {[%clk 0:02:50]} 8. Rb1 {[%clk 0:03:03]}  Nbd7 {[%clk 0:02:51]} 9. b4 {[%clk 0:03:01]}  d5 {[%clk 0:02:45]} 10. b5 {[%clk 0:02:58]}  Bd6 {[%clk 0:02:22]} 11. bxc6 {[%clk 0:02:53]}  bxc6 {[%clk 0:02:22]} 12. cxd5 {[%clk 0:02:53]}  cxd5 {[%clk 0:02:22]} 13. Bg5 {[%clk 0:02:54]}  h6 {[%clk 0:02:19]} 14. Bd2 {[%clk 0:02:46]}  Nb6 {[%clk 0:02:15]} 15. Nb5 {[%clk 0:02:37]}  Bc5 {[%clk 0:02:07]} 16. Ba5 {[%clk 0:02:35]}  Qe7 {[%clk 0:02:06]} 17. Nxe5 {[%clk 0:02:07]}  Bxf2+ {[%clk 0:02:02]} 18. Rxf2 {[%clk 0:02:01]}  Qxe5 {[%clk 0:02:02]} 19. Bc3 {[%clk 0:01:51]}  Qe7 {[%clk 0:01:37]} 20. Bxf6 {[%clk 0:01:47]}  gxf6 {[%clk 0:01:38]} 21. Qc1 {[%clk 0:01:42]}  Kg7 {[%clk 0:01:37]} 22. Nc7 {[%clk 0:01:41]}  Be6 {[%clk 0:01:31]} 23. Nxa8 {[%clk 0:01:40]}  Rxa8 {[%clk 0:01:30]} 24. Qf4 {[%clk 0:01:37]}  Rc8 {[%clk 0:01:28]} 25. e4 {[%clk 0:01:23]}  dxe4 {[%clk 0:01:23]} 26. Bxe4 {[%clk 0:01:23]}  f5 {[%clk 0:01:17]} 27. Bxf5 {[%clk 0:01:18]}  Bxf5 {[%clk 0:01:15]} 28. Qxf5 {[%clk 0:01:19]}  Rc5 {[%clk 0:01:15]} 29. Qg4+ {[%clk 0:01:13]}  Rg5 {[%clk 0:01:14]} 30. Qd4+ {[%clk 0:01:13]}  Kg8 {[%clk 0:01:08]} 31. Rbf1 {[%clk 0:01:11]}  Rd5 {[%clk 0:00:58]} 32. Qg4+ {[%clk 0:01:03]}  Rg5 {[%clk 0:00:56]} 33. Qh4 {[%clk 0:00:58]}  Qe3 {[%clk 0:00:38]} 34. Qe4 {[%clk 0:00:38]}  Qc5 {[%clk 0:00:33]} 35. Qe8+ {[%clk 0:00:36]}  Kh7 {[%clk 0:00:33]} 36. Qxf7+ {[%clk 0:00:36]}  Rg7 {[%clk 0:00:33]} 37. Qf5+ {[%clk 0:00:36]}  Qxf5 {[%clk 0:00:33]} 38. Rxf5 {[%clk 0:00:37]}  Kg6 {[%clk 0:00:32]} 39. Ra5 {[%clk 0:00:35]}  Rd7 {[%clk 0:00:31]} 40. Rd1 {[%clk 0:00:30]}  Nd5 {[%clk 0:00:30]} 41. Ra6+ {[%clk 0:00:28]}  Kg7 {[%clk 0:00:30]} 42. Rb1 {[%clk 0:00:25]}  Nb6 {[%clk 0:00:28]} 43. Rbxb6 {[%clk 0:00:23]}  axb6 {[%clk 0:00:28]} 44. Rxb6 {[%clk 0:00:23]}  Rxd3 {[%clk 0:00:28]} 45. Rb1 {[%clk 0:00:24]}  Rd2 {[%clk 0:00:27]} 46. Ra1 {[%clk 0:00:25]}  Rd5 {[%clk 0:00:26]} 47. a4 {[%clk 0:00:25]}  Ra5 {[%clk 0:00:26]} 48. Kf2 {[%clk 0:00:25]}  Kf6 {[%clk 0:00:27]} 49. Ke3 {[%clk 0:00:26]}  Ke5 {[%clk 0:00:28]} 50. Kd3 {[%clk 0:00:26]}  Kd5 {[%clk 0:00:28]} 51. Kc3 {[%clk 0:00:27]}  Kc5 {[%clk 0:00:29]} 52. Kb3 {[%clk 0:00:28]}  h5 {[%clk 0:00:27]} 53. Rc1+ {[%clk 0:00:28]}  Kb6 {[%clk 0:00:26]} 54. Rf1 {[%clk 0:00:28]}  Re5 {[%clk 0:00:24]} 55. Rf6+ {[%clk 0:00:28]}  Ka5 {[%clk 0:00:24]} 56. Rh6 {[%clk 0:00:26]}  Rf5 {[%clk 0:00:22]} 57. h4 {[%clk 0:00:20]}  Re5 {[%clk 0:00:22]} 58. Kc3 {[%clk 0:00:20]}  Re3+ {[%clk 0:00:20]} 59. Kd4 {[%clk 0:00:20]}  Rxg3 {[%clk 0:00:21]} 60. Rxh5+ {[%clk 0:00:21]}  Kxa4 {[%clk 0:00:21]} 61. Ke4 {[%clk 0:00:20]}  Rg4+ {[%clk 0:00:18]} 62. Kf3 {[%clk 0:00:18]}  Rg8 {[%clk 0:00:19]} 63. Rc5 {[%clk 0:00:17]}  Kb4 {[%clk 0:00:19]} 64. Rc1 {[%clk 0:00:17]}  Rh8 {[%clk 0:00:17]} 65. Kg4 {[%clk 0:00:17]}  Rg8+ {[%clk 0:00:18]} 66. Kh3 {[%clk 0:00:18]}  Rh8 {[%clk 0:00:18]} 67. Kg4 {[%clk 0:00:16]}  Rg8+ {[%clk 0:00:18]} 68. Kh3 {[%clk 0:00:17]}  Rh8 {[%clk 0:00:18]} 69. Rg1 {[%clk 0:00:16]}  Kc4 {[%clk 0:00:17]} 70. Rg7 {[%clk 0:00:16]}  Kd5 {[%clk 0:00:17]} 71. Kg4 {[%clk 0:00:16]}  Ke5 {[%clk 0:00:17]} 72. Kg5 {[%clk 0:00:17]}  Ke6 {[%clk 0:00:16]} 73. h5 {[%clk 0:00:17]}  Rf8 {[%clk 0:00:11]} 74. h6 {[%clk 0:00:14]}  Rf1 {[%clk 0:00:11]} 75. h7 {[%clk 0:00:13]}  Rg1+ {[%clk 0:00:12]} 76. Kh6 {[%clk 0:00:12]}  Rh1+ {[%clk 0:00:12]} 77. Kg6 {[%clk 0:00:13]}  Rg1+ {[%clk 0:00:11]} 78. Kh5 {[%clk 0:00:13]}  Rh1+ {[%clk 0:00:12]} 79. Kg4 {[%clk 0:00:13]}  Rg1+ {[%clk 0:00:12]} 80. Kf4 {[%clk 0:00:13]}  Rxg7 {[%clk 0:00:11]} 81. h8=Q {[%clk 0:00:13]}  Rf7+ {[%clk 0:00:12]} 82. Ke4 {[%clk 0:00:13]}  Re7 {[%clk 0:00:11]} 83. Qg8+ {[%clk 0:00:13]}  Kd7+ {[%clk 0:00:11]} 84. Kd5 {[%clk 0:00:13]}  Re8 {[%clk 0:00:09]} 85. Qf7+ {[%clk 0:00:11]}  Re7 {[%clk 0:00:10]} 86. Qf5+ {[%clk 0:00:11]}  Ke8 {[%clk 0:00:09]} 87. Kd6 {[%clk 0:00:09]}  Re1 {[%clk 0:00:09]} 88. Qc8+ {[%clk 0:00:06]}  Kf7 {[%clk 0:00:08]} 89. Qd7+ {[%clk 0:00:06]}  Kg6 {[%clk 0:00:06]} 90. Qg4+ {[%clk 0:00:06]}  Kf7 {[%clk 0:00:06]} 91. Qf3+ {[%clk 0:00:05]}  Ke8 {[%clk 0:00:06]} 92. Qc6+ {[%clk 0:00:05]}  Kf7 {[%clk 0:00:05]} 93. Qc4+ {[%clk 0:00:04]}  Ke8 {[%clk 0:00:05]} 94. Qg8# {[%clk 0:00:03]} 1-0

[Event "November 21 Late 2023"]
[Site "https://www.chess.com"]
[Date "2023.11.21"]
[Round "8"]
[White "Urbina Perez, Juan Antonio"]
[Black "Awoki, Daniel Teidi"]
[Result "1-0"]
[Board "108"]
[TimeControl "180+1"]
[WhiteFideId "2217368"]
[BlackFideId "2100827"]
[WhiteElo "2185"]
[BlackElo "2077"]
[WhiteTeam "ESP"]
[BlackTeam "BRA"]
[WhiteClock "0:01:27"]
[BlackClock "0:00:09"]

1. e4 {[%clk 0:03:00]}  Nf6 {[%clk 0:03:00]} 2. e5 {[%clk 0:03:00]}  Nd5 {[%clk 0:03:00]} 3. Nc3 {[%clk 0:03:01]}  Nxc3 {[%clk 0:02:59]} 4. dxc3 {[%clk 0:03:02]}  d6 {[%clk 0:03:00]} 5. exd6 {[%clk 0:03:03]}  Qxd6 {[%clk 0:03:00]} 6. Be3 {[%clk 0:03:03]}  Qxd1+ {[%clk 0:03:00]} 7. Rxd1 {[%clk 0:03:04]}  Bf5 {[%clk 0:02:58]} 8. Bd3 {[%clk 0:03:02]}  Bxd3 {[%clk 0:02:58]} 9. cxd3 {[%clk 0:03:00]}  e5 {[%clk 0:02:58]} 10. Nf3 {[%clk 0:02:58]}  Nc6 {[%clk 0:02:57]} 11. d4 {[%clk 0:02:58]}  exd4 {[%clk 0:02:58]} 12. Nxd4 {[%clk 0:02:57]}  Nxd4 {[%clk 0:02:57]} 13. Bxd4 {[%clk 0:02:57]}  O-O-O {[%clk 0:02:56]} 14. O-O {[%clk 0:02:54]}  f6 {[%clk 0:02:55]} 15. Rfe1 {[%clk 0:02:52]}  Bd6 {[%clk 0:02:54]} 16. g3 {[%clk 0:02:51]}  a6 {[%clk 0:02:52]} 17. Kf1 {[%clk 0:02:51]}  Rhe8 {[%clk 0:02:53]} 18. Rd2 {[%clk 0:02:47]}  Rxe1+ {[%clk 0:02:53]} 19. Kxe1 {[%clk 0:02:46]}  Re8+ {[%clk 0:02:53]} 20. Re2 {[%clk 0:02:47]}  Rxe2+ {[%clk 0:02:51]} 21. Kxe2 {[%clk 0:02:48]}  Kd7 {[%clk 0:02:52]} 22. Kd3 {[%clk 0:02:47]}  Ke6 {[%clk 0:02:51]} 23. Ke4 {[%clk 0:02:45]}  f5+ {[%clk 0:02:51]} 24. Kd3 {[%clk 0:02:43]}  g5 {[%clk 0:02:51]} 25. c4 {[%clk 0:02:38]}  h5 {[%clk 0:02:48]} 26. c5 {[%clk 0:02:37]}  Be7 {[%clk 0:02:48]} 27. Kc4 {[%clk 0:02:37]}  c6 {[%clk 0:02:48]} 28. b4 {[%clk 0:02:36]}  h4 {[%clk 0:02:44]} 29. gxh4 {[%clk 0:02:35]}  gxh4 {[%clk 0:02:45]} 30. h3 {[%clk 0:02:36]}  Bg5 {[%clk 0:02:39]} 31. f3 {[%clk 0:02:35]}  Bf4 {[%clk 0:02:35]} 32. a4 {[%clk 0:02:34]}  Bg3 {[%clk 0:02:35]} 33. Be3 {[%clk 0:02:33]}  Be1 {[%clk 0:02:32]} 34. Bg5 {[%clk 0:02:31]}  Ke5 {[%clk 0:02:31]} 35. b5 {[%clk 0:02:20]}  axb5+ {[%clk 0:02:29]} 36. axb5 {[%clk 0:02:21]}  Bf2 {[%clk 0:02:28]} 37. Bd2 {[%clk 0:02:17]}  Bg3 {[%clk 0:02:07]} 38. Be3 {[%clk 0:02:14]}  Bf4 {[%clk 0:01:58]} 39. Bf2 {[%clk 0:02:14]}  Bg5 {[%clk 0:01:55]} 40. Be1 {[%clk 0:02:06]}  Kf4 {[%clk 0:01:20]} 41. Bd2+ {[%clk 0:02:05]}  Kxf3 {[%clk 0:01:20]} 42. Bxg5 {[%clk 0:02:06]}  Kg3 {[%clk 0:01:21]} 43. bxc6 {[%clk 0:02:05]}  bxc6 {[%clk 0:01:21]} 44. Kd3 {[%clk 0:02:05]}  Kxh3 {[%clk 0:01:21]} 45. Ke3 {[%clk 0:02:02]}  Kg4 {[%clk 0:01:09]} 46. Bf4 {[%clk 0:02:00]}  Kh3 {[%clk 0:00:49]} 47. Kf2 {[%clk 0:01:52]}  Kg4 {[%clk 0:00:48]} 48. Bh2 {[%clk 0:01:45]}  f4 {[%clk 0:00:49]} 49. Bg1 {[%clk 0:01:43]}  Kh3 {[%clk 0:00:45]} 50. Kf1 {[%clk 0:01:35]}  Kg3 {[%clk 0:00:41]} 51. Bf2+ {[%clk 0:01:35]}  Kg4 {[%clk 0:00:39]} 52. Kg2 {[%clk 0:01:33]}  h3+ {[%clk 0:00:28]} 53. Kh2 {[%clk 0:01:32]}  Kf3 {[%clk 0:00:28]} 54. Bh4 {[%clk 0:01:28]}  Kg4 {[%clk 0:00:16]} 55. Be1 {[%clk 0:01:27]}  Kf3 {[%clk 0:00:08]} 56. Kxh3 {[%clk 0:01:25]}  Ke2 {[%clk 0:00:08]} 57. Bh4 {[%clk 0:01:25]}  f3 {[%clk 0:00:09]} 58. Kg4 {[%clk 0:01:25]}  f2 {[%clk 0:00:08]} 59. Bxf2 {[%clk 0:01:26]}  Kxf2 {[%clk 0:00:09]} 60. Kf4 {[%clk 0:01:26]}  Ke2 {[%clk 0:00:09]} 61. Ke5 {[%clk 0:01:26]}  Kd3 {[%clk 0:00:10]} 62. Kd6 {[%clk 0:01:27]}  Kd4 {[%clk 0:00:09]} 63. Kxc6 {[%clk 0:01:27]}  Ke5 {[%clk 0:00:09]} 64. Kd7 {[%clk 0:01:27]} 1-0